Cogmind - Beta 13 @@@ ROGUE MODE // 2024.07.28 @ 14:27:05 Player: Sgt. SmokeWeed Result: Self-destructed Performance ------------- Evolutions (2) 1000 Regions Visited (5) 1000 Robots Destroyed (25) 125 Value Destroyed (822) 822 Prototype IDs (26) 520 Alien Tech Used (0) 0 Bonus (300) 300 TOTAL SCORE: 3767 Bonus ------- Aligned with FarCom 300 Cogmind --------- Core Integrity 340/550 Matter 69/300 Energy 80/100 System Corruption 0% Temperature Cool (0) Movement Core (50) Location -8/Materials Parts ------- > --- POWER (1) -------- (None) > --- PROPULSION (2) --- (None) > --- UTILITY (4) ------ Launcher Guidance Computer > --- WEAPON (4) ------- (None) > --- INVENTORY (5) ---- Ion Engine Light Treads Light Treads Light Treads Peak State ------------ > --- POWER ------------ Light Deuterium Engine > --- PROPULSION ------- Light Treads > --- UTILITY ---------- 0b10 Alert Chip Launcher Guidance Computer Decoy Drone Bay > --- WEAPON ----------- Assault Rifle Light Assault Rifle Rocket Launcher Mini Grenade Launcher > --- INVENTORY -------- Ion Engine [Rating: 34] Favorites ----------- Power Light Deuterium Engine Engine Light Deuterium Engine Propulsion Light Treads Treads Light Treads Utility Launcher Guidance Computer Device Decoy Drone Bay Processor Launcher Guidance Computer Weapon Assault Rifle Ballistic Gun Assault Rifle Ballistic Cannon Improved Light Cannon Launcher Mini Grenade Launcher Build | -11 -10 -10 -10 -9 -8 ------- Run | Yrd Mat Min Exi Min Mat Slots Evolved 4 | . . . . . 4 Power . | . . . . . . Propulsion . | . . . . . . Utility 2 | . . . . . 2 Weapon 2 | . . . . . 2 Parts Attached 21 | 5 . 4 1 1 10 Power 2 | 1 . 1 . . . Engine 2 | 1 . 1 . . . Core . | . . . . . . Reactor . | . . . . . . Propulsion 4 | 2 . . . . 2 Treads 4 | 2 . . . . 2 Leg . | . . . . . . Wheel . | . . . . . . Hover . | . . . . . . Flight . | . . . . . . Utility 3 | . . 1 1 . 1 Device 1 | . . . . . 1 Storage . | . . . . . . Processor 2 | . . 1 1 . . Hackware . | . . . . . . Protection . | . . . . . . Artifact . | . . . . . . Weapon 12 | 2 . 2 . 1 7 Energy Gun . | . . . . . . Energy Cannon . | . . . . . . Ballistic Gun 5 | 2 . 1 . . 2 Ballistic Cannon 1 | . . . . . 1 Launcher 6 | . . 1 . 1 4 Special Weapon . | . . . . . . Impact Weapon . | . . . . . . Slashing Weapon . | . . . . . . Piercing Weapon . | . . . . . . Special Melee Weapon . | . . . . . . Unidentified Prototypes 3 | . . . . . 3 Parts Lost 6 | . . 1 . . 5 Power 1 | . . . . . 1 Propulsion 1 | . . 1 . . . Utility . | . . . . . . Weapon 4 | . . . . . 4 Highest Loss Streak 5 | . . 1 . . 5 To Critical Strikes . | . . . . . . Average Slot Usage (%) 71 | . 71 64 77 85 77 Engine 12 | . 14 14 14 14 8 Treads 15 | . 28 14 14 14 14 Processor 12 | . . 7 20 28 17 Ballistic Gun 18 | . 28 20 14 14 13 Launcher 10 | . . 7 14 14 17 Naked Turns . | . . . . . . Heaviest Build 23 | 7 7 8 8 11 23 Greatest Support 40 | 40 40 20 20 20 40 Greatest Overweight (x) . | . . . . . . Average Overweight (x) . | . . . . . . Largest Inventory Capacity 5 | 5 5 5 5 5 5 Average Capacity 5 | 5 5 5 5 5 5 Most Carried 5 | . . 4 4 5 4 Average Carried 1 | . . 1 4 4 1 Final Capacity 5 | 5 5 5 5 5 5 Final Carried 5 | . . 4 4 5 4 Class Distribution -------------------- 77% | Mutant 16% | Skirmisher 5% | Scavenger-Skirmisher Dominant Class ---------------- Mutant | -10/Materials Mutant | -10/Mines Mutant | -10/Exiles Mutant | -9/Mines Skirmisher | -8/Materials Resources | -11 -10 -10 -10 -9 -8 ----------- Run | Yrd Mat Min Exi Min Mat Matter Collected 487 | 220 64 67 . . 136 Remotely . | . . . . . . Salvage Created 730 | . 131 58 . . 541 Parts 42 | . 11 6 . . 25 Haulers Intercepted 2 | . . . . . 2 Recyclers Shooed 1 | . 1 . . . . Parts Field Recycled . | . . . . . . Retrieved Matter . | . . . . . . Parts Self-Destructed . | . . . . . . Prevented . | . . . . . . Kills | -11 -10 -10 -10 -9 -8 ------- Run | Yrd Mat Min Exi Min Mat Combat Hostiles Destroyed 22 | . 5 4 . . 13 Guns 10 | . 5 4 . . 1 AOE 12 | . . . . . 12 Classes Destroyed 8 | . 2 1 . . 5 Hauler 2 | . . . . . 2 Recycler 1 | . . . . . 1 Watcher 1 | . . . . . 1 Swarmer 6 | . 3 3 . . . Grunt 12 | . 2 . . . 10 Brawler 1 | . . . . . 1 Sentry 2 | . . . . . 2 Assembled 1 | . . 1 . . . Best Kill Streak 10 | . 3 3 . . 10 Combat Bots Only 5 | . 3 3 . . 5 Max Kills in Single Turn 5 | . 1 2 . . 5 Gunslinging . | . . . . . . Exploded 3 | . . . . . 3 Melee . | . . . . . . Uniques/NPCs Destroyed . | . . . . . . Combat | -11 -10 -10 -10 -9 -8 -------- Run | Yrd Mat Min Exi Min Mat Hostile Shots Fired 125 | . 35 7 . . 83 Missed 42 | . 11 2 . . 29 Damage Taken 1190 | . 249 52 . . 889 Core 238 | . 28 . . . 210 Absorbed by Shields . | . . . . . . Core Remaining (%) 94 | 100 . . . 88 . Volleys Fired 49 | . 24 6 . . 19 Largest 4 | . 2 2 . . 4 Hottest 122 | . 40 40 . . 122 Shots Fired 110 | . 48 12 . . 50 Gun 81 | . 48 12 . . 21 Cannon 10 | . . . . . 10 Launcher 19 | . . . . . 19 Special . | . . . . . . Kinetic 91 | . 48 12 . . 31 Thermal . | . . . . . . Explosive 16 | . . . . . 16 Electromagnetic 3 | . . . . . 3 Robot Hit Streak 8 | . 8 2 . . 6 Robot Miss Streak 3 | . 3 3 . . 2 Penetration Max . | . . . . . . Secondary Targets 2 | . 2 . . . . Max Gunslinging Chain 1 | . 1 . . . . Shots Hit Robots 71 | . 33 4 . . 34 Core Hits 49 | . 12 5 . . 32 Critical Kills . | . . . . . . Critical Parts Destroyed 1 | . 1 . . . . Critical Strikes 1 | . 1 . . . . Destroy 1 | . 1 . . . . Melee Attacks . | . . . . . . Impact . | . . . . . . Slashing . | . . . . . . Piercing . | . . . . . . Sneak Attacks . | . . . . . . Combat Hostiles . | . . . . . . Follow-up Attacks . | . . . . . . Damage Inflicted 2011 | . 274 57 . . 1680 Guns 494 | . 274 57 . . 163 Cannons 147 | . . . . . 147 Explosions 1364 | . . . . . 1364 Melee . | . . . . . . Ramming 6 | . . . . . 6 Kinetic 641 | . 274 57 . . 310 Thermal . | . . . . . . Explosive 1199 | . . . . . 1199 Electromagnetic 165 | . . . . . 165 Impact . | . . . . . . Slashing . | . . . . . . Piercing . | . . . . . . Highest Corruption . | . . . . . . Average Corruption . | . . . . . . Corruption Purged . | . . . . . . Corruption Blocked . | . . . . . . Overload Shots . | . . . . . . Overflow Damage 36 | . . . . . 36 Projectiles 7 | . . . . . 7 Explosions 29 | . . . . . 29 Melee . | . . . . . . Knockbacks 2 | . . . . . 2 Impact . | . . . . . . Kinetic 2 | . . . . . 2 Secondary . | . . . . . . Self-Inflicted Damage 32 | . . . . . 32 Shots 1 | . . . . . 1 Rammed 2 | . . . . . 2 Targets Rammed 2 | . . . . . 2 Kicked . | . . . . . . Crushed . | . . . . . . Highest Temperature 56 | . 12 . . . 56 Average Temperature 18 | . 7 . . . 23 Received Heat Transfer 531 | . 99 . . . 432 Siege Activations . | . . . . . . Robots Corrupted . | . . . . . . Combat Hostiles . | . . . . . . Parts Fried . | . . . . . . Impact Corruptions . | . . . . . . Robots Melted . | . . . . . . Combat Hostiles . | . . . . . . Parts Melted 1 | . 1 . . . . Heat Transferred . | . . . . . . Parts Sabotaged . | . . . . . . Parts Stolen . | . . . . . . Parts Stripped . | . . . . . . Power Chain Reactions . | . . . . . . Alert | -11 -10 -10 -10 -9 -8 ------- Run | Yrd Mat Min Exi Min Mat Peak Influence 374 | . 150 133 . . 374 Initial 58 | . . 58 . . . Average 73 | . 60 49 . . 157 Maximum Alert Level 1 | . . . . . 1 Low Security (%) 91 | 100 100 100 . 100 69 Level 1 8 | . . . . . 30 Level 2 . | . . . . . . Level 3 . | . . . . . . Level 4 . | . . . . . . Level 5 . | . . . . . . High Security . | . . . . . . Max Security . | . . . . . . Squads Dispatched 4 | . . . . . 4 Investigation 1 | . . . . . 1 Extermination . | . . . . . . Reinforcement 3 | . . . . . 3 Assault . | . . . . . . Garrison . | . . . . . . Intercept . | . . . . . . Searches Triggered . | . . . . . . Construction Impeded 2 | . . . . . 2 Haulers Reinforced . | . . . . . . Active Scanning Responses . | . . . . . . Cargo Convoy Interrupts . | . . . . . . Stealth | -11 -10 -10 -10 -9 -8 --------- Run | Yrd Mat Min Exi Min Mat Distress Signals 2 | . . . . . 2 Communications Jammed . | . . . . . . Distress Signals . | . . . . . . Times Spotted 37 | . 8 3 . . 26 Peak Tracking Total 7 | . 4 2 . . 7 Tactical Retreats 4 | . . . . . 4 Traps | -11 -10 -10 -10 -9 -8 ------- Run | Yrd Mat Min Exi Min Mat Traps Triggered 1 | . . . . . 1 Indirectly . | . . . . . . Trap Hack Attempts . | . . . . . . Triggered . | . . . . . . Disarmed . | . . . . . . Reprogrammed . | . . . . . . Reused . | . . . . . . Traps Extracted . | . . . . . . Installed . | . . . . . . Triggered . | . . . . . . Machines | -11 -10 -10 -10 -9 -8 ---------- Run | Yrd Mat Min Exi Min Mat Machines Disabled 5 | . . . . . 5 Max in Single Turn 2 | . . . . . 2 Machines Repaired . | . . . . . . Machines Dismantled . | . . . . . . Machines Sabotaged . | . . . . . . Overloaded Fab Kills . | . . . . . . Hacking | -11 -10 -10 -10 -9 -8 --------- Run | Yrd Mat Min Exi Min Mat Machines Accessed 5 | . 1 1 1 . 2 Terminals 3 | . 1 . . . 2 Fabricators . | . . . . . . Repair Stations . | . . . . . . Recycling Units . | . . . . . . Scanalyzers . | . . . . . . Garrison Access . | . . . . . . Total Hacks 8 | . 3 1 1 . 3 Successful 3 | . . 1 1 . 1 Failed 5 | . 3 . . . 2 Catastrophic 2 | . 1 . . . 1 Database Lockouts . | . . . . . . Manual 4 | . . . 1 . 3 Terminals 6 | . 3 . . . 3 Fabricators . | . . . . . . Repair Stations . | . . . . . . Recycling Units . | . . . . . . Scanalyzers . | . . . . . . Garrison Access . | . . . . . . Terminal Hacks 3 | . . 1 1 . 1 Open Door 1 | . . 1 . . . Branch Access Points 1 | . . . . . 1 Derelict Proto ID Bank 1 | . . . 1 . . Fabricator Hacks . | . . . . . . Repair Station Hacks . | . . . . . . Recycling Unit Hacks . | . . . . . . Scanalyzer . | . . . . . . Garrison Access Hacks . | . . . . . . Unauthorized Hacks . | . . . . . . Terminals . | . . . . . . Fabricators . | . . . . . . Repair Stations . | . . . . . . Recycling Units . | . . . . . . Scanalyzers . | . . . . . . Garrison Access . | . . . . . . Data Cores Recovered . | . . . . . . Used . | . . . . . . Hacking Detections 2 | . 1 . . . 1 Full Trace Events . | . . . . . . Feedback Events . | . . . . . . Feedback Blocked . | . . . . . . Robot Schematics Acquired . | . . . . . . Robots Built . | . . . . . . Authchips . | . . . . . . Time . | . . . . . . Total Robot Build Rating . | . . . . . . Part Schematics Acquired . | . . . . . . Parts Built . | . . . . . . Authchips . | . . . . . . Time . | . . . . . . Total Part Build Rating . | . . . . . . Parts Repaired . | . . . . . . Time . | . . . . . . Parts Recycled . | . . . . . . Recycled Matter . | . . . . . . Retrieved Matter . | . . . . . . Retrieved Components . | . . . . . . Parts Scanalyzed . | . . . . . . Part Schematics Acquired . | . . . . . . Parts Damaged . | . . . . . . Bothacking | -11 -10 -10 -10 -9 -8 ------------ Run | Yrd Mat Min Exi Min Mat Used RIF Installer . | . . . . . . Robots Hacked . | . . . . . . Non-combat . | . . . . . . Combat . | . . . . . . Robot Hacks Applied . | . . . . . . Relay Couplers Released . | . . . . . . Fabnet Peak Effective % . | . . . . . . Robots Rewired . | . . . . . . Allies Hacked . | . . . . . . Hacks Repelled . | . . . . . . Allies | -11 -10 -10 -10 -9 -8 -------- Run | Yrd Mat Min Exi Min Mat Total Allies 1 | . . 1 . . . Largest Group 1 | . . 1 . . . Highest-Rated Group 31 | . . 31 . . . Highest-Rated Ally 31 | . . 31 . . . Total Orders 1 | . . . . . 1 EXPLORE 1 | . . . . . 1 Ally Attacks . | . . . . . . Total Damage . | . . . . . . Kills . | . . . . . . Allies Corrupted . | . . . . . . Allies Melted . | . . . . . . Intel | -11 -10 -10 -10 -9 -8 ------- Run | Yrd Mat Min Exi Min Mat Robot Analysis Total . | . . . . . . Derelict Logs Recovered 2 | . . 2 . . . Drone Launches 16 | . . . . . 16 Drone Recoveries . | . . . . . . Exploration | -11 -10 -10 -10 -9 -8 ------------- Run | Yrd Mat Min Exi Min Mat Turns Passed 2391 | 79 276 958 356 183 539 Spaces Moved 1226 | 47 134 499 222 114 210 Core 17 | 2 . . . . 15 Treads 1209 | 45 134 499 222 114 195 Legs . | . . . . . . Wheels . | . . . . . . Hover . | . . . . . . Flight . | . . . . . . Fastest Speed 50 | 50 160 160 160 160 50 Average Speed 158 | 155 160 160 160 160 152 Slowest Speed 160 | 160 160 160 160 160 160 Overloaded Moves . | . . . . . . Propulsion Burnouts . | . . . . . . Robots Hopped . | . . . . . . Cave-ins Triggered . | . . . . . . Exploration Rate (%) 35 | 5 21 85 43 28 31 Regions Visited 5 Branch Regions 3 Pre-discovered Areas . | . . . . . . Known Exits Taken . | . . . . . . Unknown Exits Taken 5 | 1 1 1 1 1 . Scrap Searched 1 | . . 1 . . . Spaces Dug . | . . . . . . Terrain Destroyed 83 | . . . . . 83 Melee . | . . . . . . Projectile . | . . . . . . AOE 83 | . . . . . 83 Terrain Rammed . | . . . . . . Walls Destroyed . | . . . . . . Machines Disabled . | . . . . . . Actions | -11 -10 -10 -10 -9 -8 --------- Run | Yrd Mat Min Exi Min Mat Total 1582 | 51 157 647 222 114 391 Wait 278 | . . 137 . . 141 Move 1221 | 46 133 498 221 113 210 Hop . | . . . . . . Pick Up 1 | . . 1 . . . Fast Attach 14 | 5 . 2 1 . 6 Attach 3 | . . . . . 3 Detach 2 | . . . . . 2 Swap 4 | . . 2 . 1 1 Drop 8 | . . 1 . . 7 Fire 49 | . 24 6 . . 19 Melee . | . . . . . . Ram . | . . . . . . Kick . | . . . . . . Crush 2 | . . . . . 2 Escape Stasis . | . . . . . . Rewire . | . . . . . . Trap . | . . . . . . Miscellaneous . | . . . . . . Route ------- -11/Scrapyard -10/Materials -10/Mines (discovered 2 exits: [*Mat] / *Exi) -10/Exiles -9/Mines -8/Materials History --------- Turn | Location | Event 10 | -11/Scrapyard | Discovered new exit (range 13) 80 | -11/Scrapyard | Entered Materials 307 | -10/Materials | Discovered new exit (range 15) 309 | -10/Materials | Build established: Mutant 356 | -10/Materials | Entered Mines 388 | -10/Mines | Assembled infested the area 587 | -10/Mines | Learned Materials stockpile data 889 | -10/Mines | Discovered new exit (range 16) 894 | -10/Mines | Received a Mining Laser from a helpful Derelict 1223 | -10/Mines | Found the Drone Emporium 1230 | -10/Mines | Found Prototype Device 1308 | -10/Mines | Discovered new exit (range 5) 1314 | -10/Mines | Entered Exiles 1353 | -10/Exiles | Met 8R-AWN 1382 | -10/Exiles | Met EX-HEX 1431 | -10/Exiles | Met EX-BIN 1449 | -10/Exiles | Aligned with FarCom system 1450 | -10/Exiles | Given EX-Vault access code 1489 | -10/Exiles | Opened EX-Vault 1502 | -10/Exiles | Found 0b10 Alert Chip 1538 | -10/Exiles | Warned to stay clear of 0b10 Research branches 1652 | -10/Exiles | Discovered new exit (range 14) 1670 | -10/Exiles | Left Exiles lab with 0b10 Alert Chip 1670 | -10/Exiles | Entered Mines 1677 | -9/Mines | Received a Rocket Launcher from a helpful Derelict 1837 | -9/Mines | Discovered new exit (range 11) 1853 | -9/Mines | Entered Materials 1853 | -8/Materials | Evolved 4 slots: Utility x2, Weapon x2 1855 | -8/Materials | Identified Decoy Drone Bay 1918 | -8/Materials | Lost 6 allies 2392 | -8/Materials | Self-destructed Last Messages --------------- Critical hit (Burn: +37). G-47 Trooper destroyed. Assault Rifle destroyed. Penetrated by Slug. Terminal disabled. G-47 Trooper destroyed. Imp. Light Cannon destroyed. Rocket Launcher destroyed. Lgt. Deuterium Engine destroyed. Slug penetrates Wall. Acquired Prototype Ballistic Gun. Identified Enh. Autogun. 0b10 Alert Chip broken. Faulty integration triggers power surge. Dropped Faulty Enh. Autogun. Discarded Broken 0b10 Alert Chip. Penetrated by Slug. R-06 Scavenger collects Prototype Engine. Acquired 4 matter. Acquired 1 matter. Map ----- +----------------------------------------------------+ | ?????????????????????????????????????????????????? | | ?????????????????????????????????????????????????? | | ?????????????????????????????????????????????????? | | ?????????????????????????????????????????????????? | | ?????????????????????????????????????????????????? | | ?????????????????????????????????????????????????? | | ?????????????????????????????????????????????????? | | ?????????????????? ??????????????????????????? | | ?????????????????? #?????????????????????????? | | ?????????????????? ##########????????????????? | | ??????????????????g # !#????????????????? | | ??????????????????# # """ #????????????????? | | ??????????????????# # """ #????????????????? | | ??????????????????# # """ #????????????????? | | ??????????????????# # [#????????????????? | | ??????????????????# # """ #????????????????? | | ??????????????????# a # """ #????#???????????? | | ??????????????????# # """ #??? #???????????? | | ??????????????????# #= #?? #???????????? | | ??????????????????# #####+##### #???????????? | | ################### t% #???????????? | | # #???????????? | | # #???????????? | | # """ """ """ """ ########???????????? | | +% """"""""" """"""""" #??????????????????? | | # """"" " """"" "@ #??????????????????? | | # %% % ########???????????? | | ## g k #???????????? | | # g #???????????? | | # ?????? | | # ###################### ############????? ! | | ##???????????????# # # #??????? | | ##??????????????# #% w# """ #??????? | | # #???????????######## # """ #??????? ! | | =% ##??????????# % =# """ #??????? | | #%* ############## [*[+ #??????? | | =*= g]%[=# [""" #??????? | | ! # """ #??????+ | | % =% ] # """ #??????# | | ############# *%[ # #??????# | | # ###????????# ##Y#######??????# | | #! #????????# = ##########/### | | """ !#????????# / # | | [ """ #????????## ########## # | | """ #?????????# # #??????# / | | #?????????# # #??????# # | | """ "#?????????# " # #??????# # | | """ T#?????????# """ ###??????# # | | # """ "#?????????# """ ##???????######## | | #?????????# #???????????????# | +----------------------------------------------------+ Best States ------------- Heat Dissipation 31 Energy Generation 14 Energy Capacity 250 Matter Stores 300 Matter Capacity 300 Sight Range 16 Terrain Scan Density 10 Evasion (%) 50 Launcher Accuracy 20 Recoil Reduction 2 Item Schematics ----------------- None Robot Schematics ------------------ None Fabricated ------------ Nothing Alien Tech Used ----------------- None Achievements -------------- None Challenges ------------ None Game ------ Seed TripodCompactShifter Manual? 0 Play Time 00:12:20 Cumulative 50.4 hours Start 2024.07.28 @ 14:15:58 End 2024.07.28 @ 14:27:05 Sessions 1 Manual Loads 0 Difficulty Rogue Special Mode None Game No. 115 Rogue 45 Adventurer 70 Explorer 0 Win Type - Total 0 Types 0/0/0/0/0/0/0/0/0 Lore% 34 Gallery% 37 Achievement% 30 Wizard Run 0 Options --------- Layout 0 ASCII 0 Keyboard 0 Movement Mouse Keybinds 0 Fullscreen 1 Font 24/Smallcaps Map View 76x50 Zoom Use 0% Tactical HUD 0 Map Filters NONE Filters NONE Steam 1 RUN: 1b746e48-67a1-4bfb-88d5-d85ad2746d63